[Event "*** SCC Grand Prix: Titled Tuesday Blitz"]
[Site "Chess.com"]
[Date "2020.09.08"]
[Round "4"]
[White "Brave_spirit12"]
[Black "j_coca"]
[Result "1/2-1/2"]
[WhiteElo "2498"]
[BlackElo "2332"]
[TimeControl "180+1"]
[EndTime "10:40:34 PDT"]
[Termination "Game drawn by repetition"]

1. e4 {[%clk 0:03:00.9]} 1... Nf6 {[%clk 0:02:58]} 2. e5 {[%clk 0:03:01.1]} 2...
Nd5 {[%clk 0:02:54.5]} 3. Nf3 {[%clk 0:03:01.5]} 3... d6 {[%clk 0:02:51.3]} 4.
Nc3 {[%clk 0:02:58.6]} 4... Nxc3 {[%clk 0:02:50.9]} 5. dxc3 {[%clk 0:02:58.6]}
5... Nc6 {[%clk 0:02:49.7]} 6. Bf4 {[%clk 0:02:58.2]} 6... Bg4 {[%clk
0:02:48.9]} 7. Bb5 {[%clk 0:02:57]} 7... e6 {[%clk 0:02:40.9]} 8. h3 {[%clk
0:02:49.8]} 8... Bh5 {[%clk 0:02:37.2]} 9. O-O {[%clk 0:02:35.9]} 9... Be7
{[%clk 0:02:35.4]} 10. Qe2 {[%clk 0:02:23]} 10... O-O {[%clk 0:02:31.3]} 11.
Rad1 {[%clk 0:02:22.5]} 11... Qc8 {[%clk 0:02:28.8]} 12. exd6 {[%clk 0:02:21.1]}
12... cxd6 {[%clk 0:02:29.7]} 13. Bxd6 {[%clk 0:02:21.6]} 13... Bxd6 {[%clk
0:02:25.4]} 14. Rxd6 {[%clk 0:02:22.5]} 14... Qc7 {[%clk 0:02:23]} 15. Rfd1
{[%clk 0:02:21.4]} 15... Qb6 {[%clk 0:02:22.1]} 16. g4 {[%clk 0:02:10.3]} 16...
Bg6 {[%clk 0:02:19]} 17. Ne5 {[%clk 0:02:10.1]} 17... Rac8 {[%clk 0:02:14]} 18.
Nd7 {[%clk 0:02:08.7]} 18... Qa5 {[%clk 0:02:11.5]} 19. Nxf8 {[%clk 0:02:07]}
19... Rxf8 {[%clk 0:02:12.4]} 20. Bxc6 {[%clk 0:02:07.2]} 20... bxc6 {[%clk
0:02:11.9]} 21. Rxc6 {[%clk 0:02:06.4]} 21... Qxa2 {[%clk 0:02:11.3]} 22. Qb5
{[%clk 0:01:58.1]} 22... Bxc2 {[%clk 0:02:06.9]} 23. Rd2 {[%clk 0:01:55.4]}
23... Ba4 {[%clk 0:02:05.8]} 24. Qc5 {[%clk 0:01:13.6]} 24... Bxc6 {[%clk
0:02:01.2]} 25. Qxc6 {[%clk 0:01:14.5]} 25... a5 {[%clk 0:01:54.1]} 26. c4
{[%clk 0:01:11.8]} 26... h6 {[%clk 0:01:53]} 27. c5 {[%clk 0:01:11.5]} 27... a4
{[%clk 0:01:51.3]} 28. Qd6 {[%clk 0:01:11.5]} 28... a3 {[%clk 0:01:48.4]} 29.
bxa3 {[%clk 0:01:12.4]} 29... Qxa3 {[%clk 0:01:48.3]} 30. Kg2 {[%clk 0:01:06.8]}
30... Rc8 {[%clk 0:01:36.4]} 31. Rc2 {[%clk 0:00:45.2]} 31... Qa4 {[%clk
0:01:35.5]} 32. Qd3 {[%clk 0:00:42.8]} 32... Rc6 {[%clk 0:01:15.3]} 33. f3
{[%clk 0:00:34.8]} 33... g6 {[%clk 0:01:13.6]} 34. Qe4 {[%clk 0:00:33.8]} 34...
Qxe4 {[%clk 0:01:06.9]} 35. fxe4 {[%clk 0:00:34.7]} 35... Kg7 {[%clk 0:01:07.3]}
36. Kf3 {[%clk 0:00:30.8]} 36... Kf6 {[%clk 0:01:07.6]} 37. Ke3 {[%clk
0:00:30.1]} 37... Ke5 {[%clk 0:01:07.4]} 38. Kd3 {[%clk 0:00:29]} 38... f6
{[%clk 0:00:54.4]} 39. h4 {[%clk 0:00:27.4]} 39... g5 {[%clk 0:00:54.7]} 40.
hxg5 {[%clk 0:00:19.3]} 40... hxg5 {[%clk 0:00:55.6]} 41. Ke3 {[%clk 0:00:19.6]}
41... f5 {[%clk 0:00:49]} 42. exf5 {[%clk 0:00:19.6]} 42... exf5 {[%clk
0:00:49.9]} 43. gxf5 {[%clk 0:00:20.5]} 43... Kxf5 {[%clk 0:00:50.5]} 44. Kd4
{[%clk 0:00:21.4]} 44... Kf4 {[%clk 0:00:46.1]} 45. Rf2+ {[%clk 0:00:17.9]}
45... Kg3 {[%clk 0:00:45.9]} 46. Rf8 {[%clk 0:00:16]} 46... g4 {[%clk
0:00:45.9]} 47. Kd5 {[%clk 0:00:16.6]} 47... Rc7 {[%clk 0:00:40.9]} 48. Kd6
{[%clk 0:00:16.7]} 48... Ra7 {[%clk 0:00:39.6]} 49. c6 {[%clk 0:00:14.9]} 49...
Kg2 {[%clk 0:00:39.8]} 50. c7 {[%clk 0:00:14.7]} 50... Rxc7 {[%clk 0:00:38]} 51.
Kxc7 {[%clk 0:00:15.6]} 51... g3 {[%clk 0:00:38.5]} 52. Kd6 {[%clk 0:00:14.5]}
52... Kh1 {[%clk 0:00:36.3]} 53. Rh8+ {[%clk 0:00:13.9]} 53... Kg1 {[%clk
0:00:36]} 54. Ke5 {[%clk 0:00:14.1]} 54... g2 {[%clk 0:00:36]} 55. Ke4 {[%clk
0:00:02.7]} 55... Kf2 {[%clk 0:00:33.1]} 56. Rf8+ {[%clk 0:00:02.9]} 56... Ke1
{[%clk 0:00:33.1]} 57. Rg8 {[%clk 0:00:02.7]} 57... Kf2 {[%clk 0:00:32.1]} 58.
Rf8+ {[%clk 0:00:02]} 58... Ke1 {[%clk 0:00:32.1]} 59. Rg8 {[%clk 0:00:02.1]}
59... Kf2 {[%clk 0:00:32.2]} 60. Rf8+ {[%clk 0:00:02.7]} 1/2-1/2

[Event "*** SCC Grand Prix: Titled Tuesday Blitz"]
[Site "Chess.com"]
[Date "2020.09.08"]
[Round "4"]
[White "IroniaSudby"]
[Black "dosto07"]
[Result "1-0"]
[WhiteElo "2501"]
[BlackElo "2321"]
[TimeControl "180+1"]
[EndTime "10:40:34 PDT"]
[Termination "IroniaSudby won by resignation"]

1. d4 {[%clk 0:03:00.9]} 1... d5 {[%clk 0:02:59]} 2. c4 {[%clk 0:03:01.1]} 2...
dxc4 {[%clk 0:02:57.3]} 3. Nf3 {[%clk 0:03:01.3]} 3... Nf6 {[%clk 0:02:56.8]} 4.
e3 {[%clk 0:03:01.8]} 4... e6 {[%clk 0:02:55.3]} 5. Bxc4 {[%clk 0:03:01.9]} 5...
c5 {[%clk 0:02:55.7]} 6. O-O {[%clk 0:03:01.8]} 6... Nc6 {[%clk 0:02:55.6]} 7.
a3 {[%clk 0:03:02.2]} 7... a6 {[%clk 0:02:51.2]} 8. dxc5 {[%clk 0:02:56.5]} 8...
Bxc5 {[%clk 0:02:50.5]} 9. Qc2 {[%clk 0:02:51]} 9... Qe7 {[%clk 0:02:30.1]} 10.
b4 {[%clk 0:02:48.8]} 10... Bd6 {[%clk 0:02:30.2]} 11. Bb2 {[%clk 0:02:48.9]}
11... O-O {[%clk 0:02:29.8]} 12. Nbd2 {[%clk 0:02:40.1]} 12... b5 {[%clk
0:02:29.5]} 13. Bd3 {[%clk 0:02:40.4]} 13... Bb7 {[%clk 0:02:29.9]} 14. Bxf6
{[%clk 0:02:38.2]} 14... Qxf6 {[%clk 0:02:18.7]} 15. Bxh7+ {[%clk 0:02:30.2]}
15... Kh8 {[%clk 0:02:17.6]} 16. Ne4 {[%clk 0:02:29.4]} 16... Qe7 {[%clk
0:02:07.4]} 17. Nxd6 {[%clk 0:02:28.4]} 17... Qxd6 {[%clk 0:02:07.2]} 18. Rfd1
{[%clk 0:02:28]} 18... Qe7 {[%clk 0:02:06.2]} 19. Be4 {[%clk 0:02:25.8]} 19...
Rac8 {[%clk 0:02:04.2]} 20. Qe2 {[%clk 0:02:08]} 20... Rfd8 {[%clk 0:01:54.8]}
21. h4 {[%clk 0:02:05.2]} 21... f6 {[%clk 0:01:52.4]} 22. h5 {[%clk 0:02:04.4]}
22... Kg8 {[%clk 0:01:39.4]} 23. Rxd8+ {[%clk 0:01:33.3]} 23... Rxd8 {[%clk
0:01:38.6]} 24. Rd1 {[%clk 0:01:33.7]} 24... Kf8 {[%clk 0:01:19.8]} 25. Bxc6
{[%clk 0:01:21.6]} 25... Bxc6 {[%clk 0:01:17.3]} 26. Nd4 {[%clk 0:01:21.8]}
26... Bd7 {[%clk 0:01:04.7]} 27. Rc1 {[%clk 0:01:21.7]} 27... Qd6 {[%clk
0:00:58.5]} 28. Nb3 {[%clk 0:01:16.2]} 28... e5 {[%clk 0:00:51.8]} 29. Rd1
{[%clk 0:01:08.5]} 29... Qe7 {[%clk 0:00:46.5]} 30. Qd2 {[%clk 0:01:00.5]} 30...
Ke8 {[%clk 0:00:43.1]} 31. Nc5 {[%clk 0:00:58.5]} 31... Bc8 {[%clk 0:00:39.4]}
32. Qxd8+ {[%clk 0:00:58]} 32... Qxd8 {[%clk 0:00:38.9]} 33. Rxd8+ {[%clk
0:00:58.1]} 33... Kxd8 {[%clk 0:00:39.2]} 34. f3 {[%clk 0:00:53.1]} 34... Kc7
{[%clk 0:00:38.4]} 35. Kf2 {[%clk 0:00:45.7]} 35... Kb6 {[%clk 0:00:35.5]} 36.
g4 {[%clk 0:00:43.3]} 36... a5 {[%clk 0:00:36.4]} 37. Kg3 {[%clk 0:00:36.9]}
37... axb4 {[%clk 0:00:35.6]} 38. axb4 {[%clk 0:00:37.8]} 38... Kc7 {[%clk
0:00:35.5]} 39. f4 {[%clk 0:00:33.1]} 39... Kd6 {[%clk 0:00:34.5]} 40. g5 {[%clk
0:00:29.7]} 40... Ke7 {[%clk 0:00:30.7]} 41. Kh4 {[%clk 0:00:16.9]} 41... Kf7
{[%clk 0:00:30]} 42. Ne4 {[%clk 0:00:15]} 42... exf4 {[%clk 0:00:20.5]} 43. exf4
{[%clk 0:00:15.2]} 43... Ke7 {[%clk 0:00:17.4]} 44. h6 {[%clk 0:00:14]} 44...
gxh6 {[%clk 0:00:16.8]} 45. gxh6 {[%clk 0:00:13.9]} 45... Bf5 {[%clk 0:00:16.7]}
46. Nc5 {[%clk 0:00:09.7]} 46... Kd6 {[%clk 0:00:14.2]} 47. Kg3 {[%clk
0:00:07.1]} 47... Kd5 {[%clk 0:00:13.7]} 48. Nd7 {[%clk 0:00:05.4]} 48... Kc4
{[%clk 0:00:10.8]} 49. Nxf6 {[%clk 0:00:05.5]} 49... Bg6 {[%clk 0:00:09.6]} 50.
h7 {[%clk 0:00:06.4]} 50... Bxh7 {[%clk 0:00:08.6]} 51. Nxh7 {[%clk 0:00:06.4]}
51... Kxb4 {[%clk 0:00:09.2]} 52. f5 {[%clk 0:00:07.1]} 52... Kc5 {[%clk
0:00:09.1]} 53. Kg4 {[%clk 0:00:06.9]} 53... b4 {[%clk 0:00:08.2]} 54. f6 {[%clk
0:00:06.3]} 54... b3 {[%clk 0:00:05.1]} 55. f7 {[%clk 0:00:06.8]} 55... b2
{[%clk 0:00:04.7]} 56. f8=Q+ {[%clk 0:00:07.4]} 1-0

[Event "*** SCC Grand Prix: Titled Tuesday Blitz"]
[Site "Chess.com"]
[Date "2020.09.08"]
[Round "4"]
[White "suyu28"]
[Black "creativity"]
[Result "1-0"]
[WhiteElo "2568"]
[BlackElo "2089"]
[TimeControl "180+1"]
[EndTime "10:40:38 PDT"]
[Termination "suyu28 won by resignation"]

1. d4 {[%clk 0:03:00.3]} 1... f5 {[%clk 0:02:59]} 2. g3 {[%clk 0:02:46.7]} 2...
Nf6 {[%clk 0:02:58.4]} 3. Bg2 {[%clk 0:02:46.5]} 3... g6 {[%clk 0:02:58.1]} 4.
b4 {[%clk 0:02:46.2]} 4... Bg7 {[%clk 0:02:57.4]} 5. Bb2 {[%clk 0:02:46.6]} 5...
O-O {[%clk 0:02:57]} 6. c4 {[%clk 0:02:46.9]} 6... d6 {[%clk 0:02:41.8]} 7. Nf3
{[%clk 0:02:46.6]} 7... a5 {[%clk 0:02:40.3]} 8. b5 {[%clk 0:02:46]} 8... Ne4
{[%clk 0:02:30.4]} 9. O-O {[%clk 0:02:42.2]} 9... Nd7 {[%clk 0:02:25.5]} 10. a4
{[%clk 0:02:39.5]} 10... Nb6 {[%clk 0:02:08.3]} 11. Qc2 {[%clk 0:02:23.9]} 11...
Be6 {[%clk 0:02:04.2]} 12. Na3 {[%clk 0:02:16.3]} 12... c5 {[%clk 0:01:54.7]}
13. bxc6 {[%clk 0:02:09.1]} 13... bxc6 {[%clk 0:01:52.9]} 14. Rab1 {[%clk
0:01:56.4]} 14... Rb8 {[%clk 0:01:41.2]} 15. Rfd1 {[%clk 0:01:36.6]} 15... c5
{[%clk 0:01:39.4]} 16. d5 {[%clk 0:01:11.9]} 16... Bd7 {[%clk 0:01:37.8]} 17.
Nb5 {[%clk 0:00:48.2]} 17... g5 {[%clk 0:01:11.7]} 18. Bxg7 {[%clk 0:00:44.1]}
18... Kxg7 {[%clk 0:01:11]} 19. Ne1 {[%clk 0:00:33.7]} 19... Nf6 {[%clk
0:00:59.1]} 20. Nd3 {[%clk 0:00:24.1]} 20... Qe8 {[%clk 0:00:47.2]} 21. Rb2
{[%clk 0:00:20.3]} 21... Qg6 {[%clk 0:00:46.1]} 22. Rdb1 {[%clk 0:00:20.2]}
22... Nc8 {[%clk 0:00:33.4]} 23. Qc3 {[%clk 0:00:16.1]} 23... h5 {[%clk
0:00:27.5]} 24. Qxa5 {[%clk 0:00:14.3]} 24... e5 {[%clk 0:00:17.8]} 25. dxe6
{[%clk 0:00:08.8]} 25... Bxe6 {[%clk 0:00:17.4]} 26. Qc7+ {[%clk 0:00:08.7]}
26... Rf7 {[%clk 0:00:13.9]} 27. Qxb8 {[%clk 0:00:08.4]} 27... f4 {[%clk
0:00:12.6]} 28. Nxd6 {[%clk 0:00:06.4]} 28... Nxd6 {[%clk 0:00:11.2]} 29. Qxd6
{[%clk 0:00:07.3]} 29... fxg3 {[%clk 0:00:10.6]} 30. hxg3 {[%clk 0:00:07.3]}
30... Rd7 {[%clk 0:00:09.9]} 31. Rb7 {[%clk 0:00:07.2]} 31... Rxb7 {[%clk
0:00:06.3]} 32. Rxb7+ {[%clk 0:00:06.8]} 32... Bf7 {[%clk 0:00:06.1]} 33. Ne5
{[%clk 0:00:06.5]} 33... h4 {[%clk 0:00:04.3]} 34. Rxf7+ {[%clk 0:00:05.6]}
34... Qxf7 {[%clk 0:00:03.7]} 35. Nxf7 {[%clk 0:00:06.5]} 35... Kxf7 {[%clk
0:00:04.4]} 36. Qxf6+ {[%clk 0:00:07.4]} 36... Kxf6 {[%clk 0:00:03.8]} 37. gxh4
{[%clk 0:00:07.8]} 37... gxh4 {[%clk 0:00:03.7]} 38. a5 {[%clk 0:00:08.2]} 38...
Ke5 {[%clk 0:00:04.6]} 39. a6 {[%clk 0:00:08.4]} 39... Kd4 {[%clk 0:00:05.5]}
40. Bd5 {[%clk 0:00:08.7]} 40... Kc3 {[%clk 0:00:05]} 41. a7 {[%clk 0:00:09.2]}
41... Kd2 {[%clk 0:00:05.5]} 42. a8=Q {[%clk 0:00:10.1]} 42... Ke1 {[%clk
0:00:05.2]} 43. f4 {[%clk 0:00:11]} 43... h3 {[%clk 0:00:04.8]} 44. f5 {[%clk
0:00:11.4]} 44... h2+ {[%clk 0:00:05.7]} 45. Kxh2 {[%clk 0:00:12]} 45... Kxe2
{[%clk 0:00:05.5]} 46. f6 {[%clk 0:00:12.4]} 46... Ke3 {[%clk 0:00:05.4]} 47.
Qa3+ {[%clk 0:00:12.4]} 47... Kd4 {[%clk 0:00:06.3]} 48. f7 {[%clk 0:00:11.9]}
1-0

[Event "*** SCC Grand Prix: Titled Tuesday Blitz"]
[Site "Chess.com"]
[Date "2020.09.08"]
[Round "4"]
[White "XiaoKangZhong"]
[Black "ErikRonka"]
[Result "1-0"]
[WhiteElo "2425"]
[BlackElo "2248"]
[TimeControl "180+1"]
[EndTime "10:40:38 PDT"]
[Termination "XiaoKangZhong won by checkmate"]

1. e4 {[%clk 0:03:00.9]} 1... c6 {[%clk 0:02:59.4]} 2. d4 {[%clk 0:03:00.3]}
2... d5 {[%clk 0:03:00.3]} 3. e5 {[%clk 0:03:01.1]} 3... c5 {[%clk 0:03:00.3]}
4. dxc5 {[%clk 0:03:00.5]} 4... e6 {[%clk 0:03:00.9]} 5. Be3 {[%clk 0:02:55.2]}
5... Nd7 {[%clk 0:03:00.4]} 6. Bb5 {[%clk 0:02:51.8]} 6... Ne7 {[%clk
0:02:59.5]} 7. Nf3 {[%clk 0:02:31.4]} 7... Nf5 {[%clk 0:02:57]} 8. Bd4 {[%clk
0:02:17.4]} 8... a6 {[%clk 0:02:56.9]} 9. Bxd7+ {[%clk 0:02:16.3]} 9... Bxd7
{[%clk 0:02:57.8]} 10. O-O {[%clk 0:02:16.3]} 10... Nxd4 {[%clk 0:02:38.9]} 11.
Qxd4 {[%clk 0:02:15.2]} 11... Rc8 {[%clk 0:02:38.9]} 12. b4 {[%clk 0:02:15.2]}
12... b6 {[%clk 0:02:39.5]} 13. cxb6 {[%clk 0:02:05.5]} 13... Rc4 {[%clk
0:02:40.4]} 14. Qd1 {[%clk 0:01:51.6]} 14... Rxb4 {[%clk 0:02:34.3]} 15. c3
{[%clk 0:01:46.6]} 15... Rxb6 {[%clk 0:02:33.3]} 16. Nbd2 {[%clk 0:01:47.2]}
16... Be7 {[%clk 0:02:30.3]} 17. Nd4 {[%clk 0:01:46.7]} 17... O-O {[%clk
0:02:28.8]} 18. c4 {[%clk 0:01:43.1]} 18... f6 {[%clk 0:02:07.1]} 19. cxd5
{[%clk 0:01:39.6]} 19... exd5 {[%clk 0:01:58]} 20. exf6 {[%clk 0:01:36.8]} 20...
Bxf6 {[%clk 0:01:58.9]} 21. N2b3 {[%clk 0:01:36.4]} 21... Re8 {[%clk 0:01:37]}
22. Rc1 {[%clk 0:01:33.5]} 22... Bb5 {[%clk 0:01:24.8]} 23. Nxb5 {[%clk
0:01:31.5]} 23... Rxb5 {[%clk 0:01:21.7]} 24. Re1 {[%clk 0:01:21.8]} 24... d4
{[%clk 0:01:16.2]} 25. Rxe8+ {[%clk 0:01:15.9]} 25... Qxe8 {[%clk 0:01:17.1]}
26. Nxd4 {[%clk 0:01:14.4]} 26... Rb2 {[%clk 0:00:45.5]} 27. Nf3 {[%clk
0:00:55.7]} 27... h6 {[%clk 0:00:38.8]} 28. Rc2 {[%clk 0:00:43.9]} 28... Rb8
{[%clk 0:00:21.1]} 29. h3 {[%clk 0:00:38.8]} 29... Rd8 {[%clk 0:00:20.7]} 30.
Rd2 {[%clk 0:00:36.6]} 30... Rc8 {[%clk 0:00:20.3]} 31. Re2 {[%clk 0:00:34.3]}
31... Qf7 {[%clk 0:00:19.9]} 32. Qd3 {[%clk 0:00:29.2]} 32... Rd8 {[%clk
0:00:19.5]} 33. Qxa6 {[%clk 0:00:22]} 33... Qc7 {[%clk 0:00:14.9]} 34. Qe6+
{[%clk 0:00:20.7]} 34... Kh8 {[%clk 0:00:14.9]} 35. g3 {[%clk 0:00:19.7]} 35...
Qc1+ {[%clk 0:00:11.4]} 36. Re1 {[%clk 0:00:19.8]} 36... Rd1 {[%clk 0:00:12.1]}
37. Rxd1 {[%clk 0:00:17.3]} 37... Qxd1+ {[%clk 0:00:13]} 38. Kg2 {[%clk
0:00:17.8]} 38... Qa4 {[%clk 0:00:13.4]} 39. Qb3 {[%clk 0:00:14.8]} 39... Qa8
{[%clk 0:00:09.1]} 40. h4 {[%clk 0:00:14.8]} 40... g5 {[%clk 0:00:08.9]} 41.
hxg5 {[%clk 0:00:14.9]} 41... hxg5 {[%clk 0:00:09.8]} 42. Qe6 {[%clk 0:00:15.5]}
42... Kg7 {[%clk 0:00:09.8]} 43. g4 {[%clk 0:00:13.3]} 43... Qa4 {[%clk
0:00:09]} 44. Kh3 {[%clk 0:00:06.2]} 44... Qf4 {[%clk 0:00:08.8]} 45. Kg2 {[%clk
0:00:06.4]} 45... Qa4 {[%clk 0:00:08.5]} 46. Nh2 {[%clk 0:00:06.4]} 46... Qa8+
{[%clk 0:00:06.6]} 47. f3 {[%clk 0:00:04.7]} 47... Qb8 {[%clk 0:00:05.8]} 48.
Nf1 {[%clk 0:00:04.8]} 48... Qb2+ {[%clk 0:00:05.8]} 49. Kg3 {[%clk 0:00:04.6]}
49... Qb8+ {[%clk 0:00:06.3]} 50. Kh3 {[%clk 0:00:04.2]} 50... Qb2 {[%clk
0:00:07.2]} 51. Ng3 {[%clk 0:00:04.6]} 51... Qf2 {[%clk 0:00:02.8]} 52. Nh5+
{[%clk 0:00:04.8]} 52... Kh7 {[%clk 0:00:01.8]} 53. Qf7+ {[%clk 0:00:05.1]}
53... Kh8 {[%clk 0:00:02]} 54. Qxf6+ {[%clk 0:00:05.3]} 54... Kg8 {[%clk
0:00:02.1]} 55. Qg7# {[%clk 0:00:06]} 1-0

[Event "*** SCC Grand Prix: Titled Tuesday Blitz"]
[Site "Chess.com"]
[Date "2020.09.08"]
[Round "4"]
[White "CaspiIsrael"]
[Black "ajedrezsinlimites"]
[Result "1-0"]
[WhiteElo "2645"]
[BlackElo "2446"]
[TimeControl "180+1"]
[EndTime "10:40:39 PDT"]
[Termination "CaspiIsrael won by resignation"]

1. e4 {[%clk 0:03:00.9]} 1... e5 {[%clk 0:02:58]} 2. Nf3 {[%clk 0:03:00.6]} 2...
Nc6 {[%clk 0:02:55.8]} 3. Bb5 {[%clk 0:03:00.8]} 3... a6 {[%clk 0:02:55.4]} 4.
Ba4 {[%clk 0:03:01.2]} 4... b5 {[%clk 0:02:55.9]} 5. Bb3 {[%clk 0:03:01.1]} 5...
Na5 {[%clk 0:02:56.8]} 6. d4 {[%clk 0:02:59.5]} 6... Nxb3 {[%clk 0:02:54.2]} 7.
axb3 {[%clk 0:02:59.6]} 7... exd4 {[%clk 0:02:54.2]} 8. Qxd4 {[%clk 0:02:58.9]}
8... d6 {[%clk 0:02:46.5]} 9. Bg5 {[%clk 0:02:53]} 9... Nf6 {[%clk 0:02:26.3]}
10. Bxf6 {[%clk 0:02:51.8]} 10... Qxf6 {[%clk 0:02:23.6]} 11. Qxf6 {[%clk
0:02:51.3]} 11... gxf6 {[%clk 0:02:23.5]} 12. O-O {[%clk 0:02:46.5]} 12... Bb7
{[%clk 0:02:20.7]} 13. Nc3 {[%clk 0:02:45.3]} 13... O-O-O {[%clk 0:02:15.3]} 14.
Nd4 {[%clk 0:02:45]} 14... Re8 {[%clk 0:02:12.9]} 15. f3 {[%clk 0:02:44.9]}
15... Bh6 {[%clk 0:02:11.8]} 16. Nf5 {[%clk 0:02:44.3]} 16... Bf4 {[%clk
0:02:10.4]} 17. Ne2 {[%clk 0:02:37.4]} 17... Be5 {[%clk 0:02:06]} 18. c3 {[%clk
0:02:37.6]} 18... d5 {[%clk 0:01:54.3]} 19. f4 {[%clk 0:02:18.3]} 19... Bd6
{[%clk 0:01:51.5]} 20. Nxd6+ {[%clk 0:02:17.2]} 20... cxd6 {[%clk 0:01:51.3]}
21. Kf2 {[%clk 0:02:13.1]} 21... dxe4 {[%clk 0:01:34]} 22. Ke3 {[%clk
0:02:06.3]} 22... Rhg8 {[%clk 0:01:30.1]} 23. g3 {[%clk 0:02:05.5]} 23... Kc7
{[%clk 0:01:28.3]} 24. b4 {[%clk 0:02:05.4]} 24... f5 {[%clk 0:01:21.9]} 25.
Rfd1 {[%clk 0:02:01.3]} 25... h5 {[%clk 0:01:19.2]} 26. Rg1 {[%clk 0:01:50.9]}
26... Kb6 {[%clk 0:01:10.2]} 27. Nd4 {[%clk 0:01:50.4]} 27... Bc8 {[%clk
0:01:09.7]} 28. Rae1 {[%clk 0:01:48.3]} 28... Be6 {[%clk 0:01:08.5]} 29. Nc2
{[%clk 0:01:42.6]} 29... Ra8 {[%clk 0:01:05.4]} 30. Rd1 {[%clk 0:01:39.9]} 30...
Rgd8 {[%clk 0:01:03.5]} 31. Ra1 {[%clk 0:01:37.6]} 31... Rg8 {[%clk 0:00:56.5]}
32. Kd4 {[%clk 0:01:37.4]} 32... Rgc8 {[%clk 0:00:54.3]} 33. Ne3 {[%clk
0:01:37]} 33... Rg8 {[%clk 0:00:51.3]} 34. Ng2 {[%clk 0:01:31.8]} 34... Rgc8
{[%clk 0:00:49.6]} 35. Ke3 {[%clk 0:01:29.3]} 35... Rc4 {[%clk 0:00:47.1]} 36.
Ra5 {[%clk 0:01:27.9]} 36... Rd8 {[%clk 0:00:41.9]} 37. Rga1 {[%clk 0:01:26.9]}
37... Bc8 {[%clk 0:00:40.5]} 38. Rd1 {[%clk 0:01:26.4]} 38... d5 {[%clk
0:00:40.3]} 39. Rd4 {[%clk 0:01:21.9]} 39... Kc6 {[%clk 0:00:37.7]} 40. Ra1
{[%clk 0:01:19.3]} 40... Kd6 {[%clk 0:00:37.3]} 41. Rad1 {[%clk 0:01:18]} 41...
Ke6 {[%clk 0:00:36.4]} 42. Rxc4 {[%clk 0:01:14.1]} 42... bxc4 {[%clk 0:00:35.6]}
43. Kd4 {[%clk 0:01:14.2]} 43... Kd6 {[%clk 0:00:33.7]} 44. Ra1 {[%clk
0:01:13.3]} 44... f6 {[%clk 0:00:22.5]} 45. Ra5 {[%clk 0:01:12.9]} 45... Rd7
{[%clk 0:00:16.8]} 46. Ne3 {[%clk 0:01:07.9]} 46... Bb7 {[%clk 0:00:15.4]} 47.
Nxf5+ {[%clk 0:01:07.7]} 47... Ke6 {[%clk 0:00:15.4]} 48. Ne3 {[%clk 0:01:07.8]}
48... f5 {[%clk 0:00:15.5]} 49. b5 {[%clk 0:00:57]} 49... axb5 {[%clk
0:00:14.1]} 50. Rxb5 {[%clk 0:00:57.9]} 50... h4 {[%clk 0:00:13.1]} 51. Rb6+
{[%clk 0:00:57.3]} 51... Kf7 {[%clk 0:00:11.7]} 52. gxh4 {[%clk 0:00:55.7]}
52... Bc8 {[%clk 0:00:10.4]} 53. h5 {[%clk 0:00:55.6]} 53... Kg8 {[%clk
0:00:09.1]} 54. Nxf5 {[%clk 0:00:50.5]} 54... Kh7 {[%clk 0:00:08.4]} 55. Rh6+
{[%clk 0:00:49.4]} 55... Kg8 {[%clk 0:00:07.1]} 56. Rc6 {[%clk 0:00:48.3]} 56...
Bb7 {[%clk 0:00:06.7]} 57. Rg6+ {[%clk 0:00:44.5]} 57... Kh7 {[%clk 0:00:06.2]}
58. Rh6+ {[%clk 0:00:43.7]} 58... Kg8 {[%clk 0:00:05.8]} 59. Rd6 {[%clk
0:00:43.9]} 59... Rf7 {[%clk 0:00:04.9]} 60. Nh6+ {[%clk 0:00:43.4]} 1-0

[Event "*** SCC Grand Prix: Titled Tuesday Blitz"]
[Site "Chess.com"]
[Date "2020.09.08"]
[Round "4"]
[White "DvaHrasta"]
[Black "Off-War"]
[Result "0-1"]
[WhiteElo "2476"]
[BlackElo "2683"]
[TimeControl "180+1"]
[EndTime "10:40:40 PDT"]
[Termination "Off-War won by resignation"]

1. c4 {[%clk 0:03:00.9]} 1... Nf6 {[%clk 0:02:59.6]} 2. g3 {[%clk 0:03:00.9]}
2... g6 {[%clk 0:02:57.2]} 3. Bg2 {[%clk 0:03:00.9]} 3... Bg7 {[%clk 0:02:58.1]}
4. Nf3 {[%clk 0:03:01.1]} 4... O-O {[%clk 0:02:59]} 5. O-O {[%clk 0:03:01.2]}
5... d6 {[%clk 0:02:58.9]} 6. Nc3 {[%clk 0:02:59.9]} 6... c6 {[%clk 0:02:56.4]}
7. d3 {[%clk 0:02:59.1]} 7... e5 {[%clk 0:02:55]} 8. Rb1 {[%clk 0:02:58.8]} 8...
Re8 {[%clk 0:02:54.4]} 9. e4 {[%clk 0:02:57.7]} 9... d5 {[%clk 0:02:53.5]} 10.
cxd5 {[%clk 0:02:39.3]} 10... cxd5 {[%clk 0:02:53.6]} 11. Bg5 {[%clk 0:02:39]}
11... d4 {[%clk 0:02:53.8]} 12. Nd5 {[%clk 0:02:37.5]} 12... Qd6 {[%clk
0:02:43.3]} 13. Qb3 {[%clk 0:02:17.1]} 13... Nxd5 {[%clk 0:02:41]} 14. exd5
{[%clk 0:02:15.5]} 14... Nd7 {[%clk 0:02:31.8]} 15. Nd2 {[%clk 0:02:12.9]} 15...
Nc5 {[%clk 0:02:27.7]} 16. Nc4 {[%clk 0:01:56.8]} 16... Qa6 {[%clk 0:02:28]} 17.
Qa3 {[%clk 0:01:45]} 17... Qxa3 {[%clk 0:02:21.3]} 18. bxa3 {[%clk 0:01:44.9]}
18... f6 {[%clk 0:02:06.5]} 19. Bd2 {[%clk 0:01:42.2]} 19... Nxd3 {[%clk
0:01:56.8]} 20. Nd6 {[%clk 0:01:39.9]} 20... Rd8 {[%clk 0:01:52.6]} 21. Nxb7
{[%clk 0:01:35]} 21... Bxb7 {[%clk 0:01:34.6]} 22. Rxb7 {[%clk 0:01:34.1]} 22...
f5 {[%clk 0:01:33.2]} 23. Bg5 {[%clk 0:01:28.2]} 23... e4 {[%clk 0:00:40.3]} 24.
Bxd8 {[%clk 0:01:23.6]} 24... Rxd8 {[%clk 0:00:41.2]} 25. Rfb1 {[%clk
0:01:21.5]} 25... Bf8 {[%clk 0:00:32]} 26. Rb8 {[%clk 0:01:10.5]} 26... Rxd5
{[%clk 0:00:27]} 27. R1b7 {[%clk 0:01:06.1]} 27... Nc5 {[%clk 0:00:23.4]} 28.
Rxa7 {[%clk 0:00:56.5]} 28... d3 {[%clk 0:00:23.5]} 29. Bf1 {[%clk 0:00:49.4]}
29... d2 {[%clk 0:00:21.5]} 30. Be2 {[%clk 0:00:49.2]} 30... d1=Q+ {[%clk
0:00:19.3]} 31. Bxd1 {[%clk 0:00:49.3]} 31... Rxd1+ {[%clk 0:00:20.2]} 32. Kg2
{[%clk 0:00:49.7]} 32... Rd2 {[%clk 0:00:14.9]} 33. Raa8 {[%clk 0:00:46.8]}
33... Nd7 {[%clk 0:00:12]} 34. Re8 {[%clk 0:00:38]} 34... Kf7 {[%clk 0:00:08.7]}
35. g4 {[%clk 0:00:24.5]} 35... Bc5 {[%clk 0:00:08.8]} 36. gxf5 {[%clk
0:00:24.4]} 36... gxf5 {[%clk 0:00:08.3]} 37. Rh8 {[%clk 0:00:23]} 37... Rxf2+
{[%clk 0:00:07.2]} 38. Kg3 {[%clk 0:00:20.6]} 38... Rf3+ {[%clk 0:00:07.6]} 39.
Kg2 {[%clk 0:00:17.1]} 39... Nf6 {[%clk 0:00:08.2]} 40. Rhc8 {[%clk 0:00:12]}
40... Bd4 {[%clk 0:00:05.9]} 41. Rc7+ {[%clk 0:00:10.3]} 41... Kg6 {[%clk
0:00:05.8]} 42. Ra6 {[%clk 0:00:06.7]} 42... Rd3 {[%clk 0:00:05.3]} 43. Rc2
{[%clk 0:00:05.9]} 43... f4 {[%clk 0:00:05.6]} 44. a4 {[%clk 0:00:05.7]} 44...
f3+ {[%clk 0:00:05.9]} 45. Kg3 {[%clk 0:00:06]} 45... f2+ {[%clk 0:00:05.3]} 46.
Kg2 {[%clk 0:00:06]} 46... e3 {[%clk 0:00:06]} 47. a5 {[%clk 0:00:04.9]} 47...
Rd1 {[%clk 0:00:06.3]} 48. Kf3 {[%clk 0:00:01.8]} 48... f1=Q+ {[%clk 0:00:04.3]}
0-1